bitfinex/quotes_SOLUSD_20241008
["timestamp","ask_amount","ask_price","bid_price","bid_amount"]
[1728360816935,6.9286,144.33,144.31,15.2869]
[1728360817135,6.929,144.32,144.29,24.6299408]
[1728360817649,6.929,144.32,144.29,7.3044408]
[1728360819251,6.9287,144.33,144.29,7.3044408]
[1728360819645,6.9287,144.33,144.29,14.2348408]
[1728360820351,20.0,144.36,144.29,14.2348408]
[1728360820545,6.9282,144.34,144.29,14.2348408]
[1728360820851,6.9282,144.34,144.3,6.9299]
[1728360821143,6.9282,144.34,144.29,14.2347408]
[1728360821644,6.9289,144.33,144.29,14.2348408]
[1728360823242,6.9289,144.33,144.29,7.3044408]
[1728360826245,15.9307,144.33,144.29,0.8117408]
[1728360826453,0.12549,144.32,144.29,0.8117408]
[1728360826957,6.93,144.3,144.29,0.8117408]
[1728360829652,6.9296,144.31,144.29,0.8117408]
[1728360829832,6.9296,144.31,144.29,2.19766863]
[1728360830338,6.9292,144.32,144.29,0.8117408]
[1728360831631,15.9307,144.33,144.29,0.8117408]
[1728360831931,6.9291,144.32,144.29,0.8117408]
[1728360833234,43.7747,144.36,144.29,0.8117408]
[1728360833433,6.9289,144.33,144.29,0.8117408]
[1728360838564,6.9284,144.34,144.29,0.8117408]
[1728360838734,6.9284,144.34,144.29,7.7420408]
[1728360840253,6.9284,144.34,144.29,0.8117408]
[1728360840441,6.9284,144.34,144.3,6.9299]
[1728360842163,6.9272,144.36,144.31,6.929]
[1728360842460,6.9268,144.37,144.32,19.84491798]
[1728360842634,6.9268,144.37,144.33,8.31394829]
[1728360843443,20.0,144.38,144.33,1.38544829]
[1728360843765,6.9272,144.36,144.32,37.16731798]
[1728360844963,6.9267,144.37,144.32,37.16731798]
[1728360845162,17.3149,144.39,144.32,37.16731798]
[1728360845163,6.9257,144.39,144.34,30.23611798]
[1728360845368,6.9253,144.4,144.35,8.31265788]
[1728360846237,33.8185,144.42,144.35,8.31265788]
[1728360846461,6.9257,144.39,144.35,8.31265788]
[1728360846659,6.9257,144.39,144.35,6.9275]
[1728360848348,33.8185,144.42,144.34,17.3199]
[1728360848546,17.3134,144.4,144.32,16.4448]
[1728360849245,20.25098,144.41,144.33,17.3208]
[1728360849450,6.926,144.39,144.35,6.9273]
[1728360849661,6.926,144.39,144.34,6.9279]
[1728360850360,6.9263,144.38,144.34,6.9279]
[1728360851973,6.9258,144.39,144.35,1.38524119]
[1728360852350,6.9258,144.39,144.35,8.31254119]
[1728360852544,6.9253,144.4,144.35,6.9273]
[1728360854888,6.9247,144.41,144.35,17.3185]
[1728360855055,20.0,144.42,144.35,17.3185]
[1728360855056,26.9246,144.42,144.35,17.3185]
[1728360855374,20.25098,144.45,144.37,6.9263]
[1728360855678,6.9247,144.41,144.37,6.9263]
[1728360856476,6.9244,144.42,144.38,1.384947]
[1728360857114,6.9244,144.42,144.32,17.3217]
[1728360857115,6.9272,144.36,144.32,17.3217]
[1728360857254,6.9272,144.36,144.32,24.2507]
[1728360857578,6.9267,144.37,144.33,29.6449]
[1728360858547,6.9267,144.37,144.33,22.7165]
[1728360859474,6.9267,144.37,144.33,29.645]
[1728360859681,6.9262,144.38,144.33,22.7165]
[1728360859857,6.9262,144.38,144.34,6.9279]
[1728360860260,6.9258,144.39,144.34,6.9279]
[1728360860657,6.9258,144.39,144.35,6.9275]
[1728360862979,6.9258,144.39,144.34,6.9279]
[1728360864180,6.9258,144.39,144.33,22.7165]
[1728360864380,6.9251,144.41,144.37,6.9266]
[1728360864577,6.9251,144.41,144.36,6.9269]
[1728360864956,33.0382,144.43,144.37,1.38498882]
[1728360865162,6.9252,144.4,144.37,1.38498882]
[1728360865561,6.9252,144.4,144.36,6.9269]
[1728360870873,6.9257,144.39,144.35,6.9275]
[1728360874389,6.9257,144.39,144.34,17.3197]
[1728360874390,17.3101,144.43,144.36,8.3119698]
[1728360874572,6.9248,144.41,144.37,6.9265]
[1728360878586,6.9255,144.4,144.36,24.2444]
[1728360878789,6.9255,144.4,144.36,17.3175]
[1728360879969,33.68193923,144.46,144.33,40.037]
[1728360880178,17.3121,144.41,144.33,40.037]
[1728360880571,6.9259,144.39,144.34,6.9279]
[1728360880978,6.9259,144.39,144.33,40.037]
[1728360881296,6.9259,144.39,144.35,6.9275]
[1728360881674,7.25521393,144.45,144.33,46.9651]
[1728360881675,6.9266,144.38,144.33,46.9651]
[1728360882074,6.9266,144.37,144.33,46.9651]
[1728360882273,6.56044601,144.37,144.33,46.9651]
[1728360883771,6.9263,144.38,144.34,6.928]
[1728360885181,6.9271,144.36,144.33,40.037]
[1728360885377,6.9271,144.36,144.33,22.7165]
[1728360885776,6.9267,144.37,144.33,29.645]
[1728360892402,6.9265,144.38,144.34,8.31304549]
[1728360892703,6.9265,144.38,144.34,6.9277]
[1728360894881,6.9265,144.38,144.35,1.38521365]
[1728360895287,6.9265,144.38,144.34,6.9277]
[1728360895590,6.9258,144.39,144.34,6.9277]
[1728360900489,6.9265,144.38,144.34,6.9277]
[1728360901610,6.9265,144.38,144.33,22.7165]
[1728360901795,6.9265,144.38,144.33,29.6448]
[1728360902209,6.9273,144.36,144.33,22.7165]
[1728360902399,0.12549,144.38,144.3,22.9697]
[1728360902599,6.9285,144.33,144.3,22.9697]
[1728360903296,17.3172,144.37,144.3,22.9697]
[1728360903528,6.9281,144.34,144.3,29.8995]
[1728360903814,6.9276,144.35,144.31,8.31481443]
[1728360904416,6.9272,144.36,144.31,6.9293]
[1728360905195,6.9272,144.36,144.3,22.9697]
[1728360905435,6.9272,144.36,144.32,6.9289]
[1728360908408,6.9267,144.37,144.33,25.63458799]
[1728360908794,6.9263,144.38,144.34,8.31312885]
[1728360909321,6.9263,144.38,144.34,6.9278]
[1728360909810,6.9267,144.37,144.33,24.2494]
[1728360910119,6.9274,144.36,144.31,30.706084]
[1728360910998,6.9274,144.36,144.32,6.9289]
[1728360916716,43.6075,144.41,144.32,6.9289]
[1728360916926,6.9268,144.37,144.32,6.9289]
[1728360919417,0.25098,144.4,144.32,6.9289]
[1728360919628,6.9272,144.36,144.32,6.9289]
[1728360920415,0.25098,144.4,144.31,23.776884]
[1728360920597,43.6075,144.41,144.32,18.70730406]
[1728360921293,43.6075,144.41,144.32,17.322]
[1728360921916,37.3121,144.41,144.32,17.322]
[1728360922177,6.9262,144.38,144.34,6.9277]
[1728360922421,6.9258,144.39,144.35,8.31273786]
[1728360926126,6.9258,144.39,144.35,6.9275]
[1728360927523,6.9258,144.39,144.36,1.38514907]
[1728360928230,6.9258,144.39,144.35,6.9275]
[1728360929832,20.0,144.41,144.34,17.3199]
[1728360930140,6.9267,144.37,144.34,17.3199]
[1728360930623,6.9267,144.37,144.33,6.9284]
[1728360930928,6.9272,144.36,144.32,6.929]
[1728360931131,6.9268,144.37,144.32,6.929]
[1728360931326,17.3132,144.4,144.32,6.929]
[1728360931630,6.9271,144.36,144.32,6.929]
[1728360931834,6.9267,144.37,144.33,6.9285]
[1728360932126,6.9258,144.39,144.35,6.9275]
[1728360932327,6.9258,144.39,144.36,1.38515013]
[1728360932799,6.9255,144.4,144.36,8.31225013]
[1728360932998,20.0,144.43,144.36,1.38515013]
[1728360933411,6.9248,144.41,144.37,6.9263]
[1728360933606,6.9248,144.41,144.38,1.38497872]
[1728360934338,43.35952048,144.45,144.38,6.9261]
[1728360934339,6.9243,144.42,144.38,6.9261]
[1728360934645,6.9238,144.43,144.39,6.9256]
[1728360934931,6.9234,144.44,144.4,8.30987197]
[1728360935364,6.9234,144.44,144.4,1.38477197]
[1728360935633,6.9234,144.44,144.39,6.9255]
[1728360936652,6.9234,144.44,144.4,6.9251]
[1728360937507,6.9229,144.45,144.4,6.9251]
[1728360937717,6.9224,144.46,144.41,6.9245]
[1728360938133,6.9229,144.45,144.41,6.9245]
[1728360938830,6.9229,144.45,144.41,13.0067]
[1728360939036,6.9223,144.46,144.42,6.9241]
[1728360939237,6.9215,144.48,144.43,8.30808988]
[1728360939829,6.9209,144.49,144.43,30.22501798]
[1728360940011,6.92,144.51,144.46,6.9219]
[1728360940413,6.9205,144.5,144.46,6.9219]
[1728360940839,6.9205,144.5,144.45,17.3061]
[1728360941145,6.9205,144.5,144.45,24.2287]
[1728360943655,6.9213,144.48,144.44,6.9232]
[1728360943937,6.9218,144.47,144.43,6.9236]
[1728360944114,32.9351,144.53,144.44,6.923]
[1728360944314,20.25098,144.52,144.44,6.923]
[1728360944514,6.9213,144.49,144.44,6.923]
[1728360946838,6.9213,144.49,144.45,6.9226]
[1728360948539,6.9213,144.49,144.44,24.2308]
[1728360948938,6.9205,144.5,144.45,6.9226]
[1728360949120,6.9205,144.5,144.45,1.38419695]
[1728360949611,6.9205,144.5,144.44,17.3077]
[1728360950043,6.9205,144.5,144.46,6.9222]
[1728360953648,6.9209,144.49,144.44,17.3077]
[1728360953820,6.9209,144.49,144.44,24.2305]
[1728360955523,6.9209,144.49,144.45,6.9226]
[1728360956846,20.0,144.52,144.45,6.9226]
[1728360957023,6.9205,144.5,144.45,6.9226]
[1728360963444,6.921,144.49,144.45,6.9226]
[1728360966748,20.0,144.52,144.44,17.3077]
[1728360966930,6.9204,144.5,144.46,6.9222]
[1728360969536,6.9209,144.49,144.44,17.3077]
[1728360969843,6.9209,144.49,144.44,24.2306]
[1728360970237,6.9209,144.49,144.45,6.9227]
[1728360972644,6.4209,144.49,144.45,6.9227]
[1728360977555,6.9213,144.48,144.44,24.2308]
[1728360977738,6.9213,144.48,144.41,6.20769]
[1728360977739,20.12549,144.49,144.41,17.3108]
[1728360977939,37.42849,144.49,144.41,17.3108]
[1728360980053,6.9224,144.46,144.42,6.9242]
[1728360984153,6.9229,144.45,144.41,17.3108]
[1728360984354,6.9229,144.45,144.41,24.2354]
[1728360986046,6.9234,144.44,144.39,6.9252]
[1728360986360,6.9234,144.44,144.38,17.3151]
[1728360986542,6.9238,144.43,144.38,24.2408]
[1728360986732,20.0,144.43,144.35,24.52559408]
[1728360986932,20.0,144.43,144.36,6.927]
[1728360986933,6.9252,144.4,144.36,6.927]
[1728360987862,6.9252,144.4,144.35,24.2458]
[1728360992250,6.9252,144.4,144.36,6.927]
[1728360995067,6.9252,144.4,144.35,17.3184]
[1728360995246,6.9252,144.4,144.35,24.2459]
[1728360996261,16.651,144.41,144.35,17.3184]
[1728360996468,6.9262,144.38,144.34,6.928]
[1728361000967,6.9258,144.39,144.34,6.928]
[1728361001551,6.9265,144.38,144.34,6.9279]
[1728361001971,6.9258,144.39,144.34,6.9279]
[1728361002767,6.9253,144.4,144.35,6.9272]
[1728361005381,6.9262,144.38,144.34,24.2476]
[1728361006391,6.522,144.39,144.34,17.3197]
[1728361006677,13.4477,144.39,144.35,6.9275]
[1728361008273,13.4477,144.39,144.34,17.3197]
[1728361008465,6.9261,144.38,144.34,24.2476]
[1728361010678,6.9276,144.35,144.31,24.2526]
[1728361010880,6.9272,144.36,144.32,6.9288]
[1728361011183,6.522,144.39,144.33,17.3211]
[1728361011184,6.9263,144.38,144.33,17.3211]
[1728361011484,6.9263,144.38,144.34,6.9279]
[1728361011971,6.9252,144.4,144.36,6.927]
[1728361012173,34.6158,144.45,144.37,18.70116907]
[1728361012174,15.4182,144.45,144.37,18.70116907]
[1728361012355,15.4182,144.45,144.38,1.38482612]
[1728361012774,15.4182,144.45,144.38,6.926]
[1728361013779,20.0,144.44,144.38,6.926]
[1728361013989,6.9243,144.42,144.38,6.926]
[1728361014680,20.0,144.44,144.39,18.69835329]
[1728361014983,15.4182,144.45,144.42,6.9241]
[1728361015168,15.4182,144.45,144.43,1.38454689]
[1728361016182,15.4182,144.45,144.42,6.9241]
[1728361016364,15.4182,144.45,144.43,1.38454401]
[1728361016569,15.4182,144.45,144.42,6.9241]
[1728361017477,15.4182,144.45,144.39,17.3135]
[1728361017687,15.4182,144.45,144.41,6.9246]
[1728361019288,16.5765,144.49,144.42,23.776884]
[1728361019615,26.9217,144.48,144.43,6.9236]
[1728361020170,26.9217,144.48,144.44,6.9231]
[1728361020486,16.5765,144.49,144.45,6.9227]
[1728361020487,23.4974,144.49,144.45,6.9227]
[1728361021475,23.4974,144.49,144.44,24.2313]
[1728361021674,6.9215,144.48,144.44,24.2313]
[1728361023407,23.4974,144.49,144.44,17.3081]
[1728361023686,23.4974,144.49,144.45,8.3069745]
[1728361023894,23.4974,144.49,144.45,6.9227]
[1728361024469,16.5765,144.49,144.45,6.9227]
[1728361024992,16.5765,144.49,144.46,8.30645541]
[1728361025467,16.5765,144.49,144.46,6.9222]
[1728361026607,6.3901,144.51,144.47,1.38412792]
[1728361026894,22.7539,144.52,144.47,1.38412792]
[1728361027071,22.7539,144.52,144.48,6.9212]
[1728361027272,22.7539,144.52,144.49,1.38388523]
[1728361027998,6.5791,144.54,144.51,6.9197]
[1728361028296,15.8344,144.55,144.52,1.38368337]
[1728361028599,6.5791,144.58,144.53,6.9189]
[1728361028600,29.2345,144.58,144.53,6.9189]
[1728361029476,22.6554,144.58,144.53,6.9189]
[1728361029807,15.7385,144.58,144.53,6.9189]
[1728361029977,22.6551,144.58,144.53,6.9189]
[1728361031884,6.9171,144.57,144.53,6.9189]
[1728361032301,15.7385,144.58,144.51,17.2993]
[1728361032476,6.9165,144.59,144.55,6.9179]
[1728361032682,6.9165,144.59,144.54,23.776884]
[1728361032683,6.9157,144.6,144.56,1.38320388]
[1728361032983,6.9157,144.6,144.54,23.776884]
[1728361033187,15.0878,144.61,144.53,17.2967]
[1728361033787,6.9167,144.58,144.53,24.2152]
[1728361034001,6.9161,144.59,144.54,30.695184]
[1728361034812,6.9161,144.59,144.54,6.9183]
[1728361035406,6.9179,144.56,144.51,6.9198]
[1728361035613,6.9179,144.56,144.52,23.776884]
[1728361037808,6.9179,144.56,144.52,6.9193]
[1728361038408,0.12549,144.6,144.52,6.9193]
[1728361038621,0.12549,144.6,144.53,6.9187]
[1728361038622,6.9167,144.58,144.53,6.9187]
[1728361038795,6.9167,144.58,144.54,1.38333577]
[1728361039713,6.9167,144.58,144.53,6.9187]
[1728361039899,6.9167,144.58,144.54,6.9183]
[1728361040196,6.9167,144.58,144.55,1.38326711]
[1728361040400,6.9167,144.58,144.54,6.9183]
[1728361044792,20.0,144.6,144.54,6.9183]
[1728361045004,32.3763,144.61,144.54,6.9183]
[1728361045005,6.9162,144.59,144.54,6.9183]
[1728361045607,6.9162,144.59,144.55,8.30120237]
[1728361047417,15.0878,144.61,144.55,6.918]
[1728361047600,6.9157,144.6,144.55,6.918]
[1728361047916,6.9157,144.6,144.56,8.30052963]
[1728361048215,15.0878,144.61,144.57,23.776884]
[1728361048426,22.0033,144.61,144.57,23.776884]
[1728361048809,6.9157,144.6,144.56,6.9174]
[1728361049004,6.9157,144.6,144.54,17.2958]
[1728361049204,6.9157,144.6,144.55,30.694784]
[1728361051016,6.9157,144.6,144.55,23.776884]
[1728361051320,6.9157,144.6,144.56,6.9172]
[1728361051619,22.0033,144.61,144.56,6.9172]
[1728361052006,6.9159,144.6,144.55,30.694684]
[1728361052318,15.0878,144.61,144.54,24.2141]
[1728361052615,6.9167,144.58,144.54,24.2142]
[1728361054593,6.9179,144.56,144.51,24.2186]
[1728361056022,6.9181,144.55,144.51,24.2186]
[1728361057217,6.9175,144.56,144.52,1.38356169]
[1728361057430,6.9175,144.56,144.52,6.9193]
[1728361059919,6.9185,144.54,144.5,6.9204]
[1728361060100,22.3627,144.57,144.48,84.6067]
[1728361060300,6.9181,144.55,144.51,6.9198]
[1728361063331,16.171,144.57,144.53,17.2963]
[1728361063510,16.171,144.57,144.54,6.918]
[1728361063712,6.9162,144.59,144.55,1.38327545]
[1728361064217,22.6979,144.61,144.55,1.38327545]
[1728361064545,22.6979,144.61,144.55,17.2942]
[1728361064823,6.9159,144.6,144.55,24.2118]
[1728361069434,16.4508,144.61,144.56,23.776884]
[1728361069621,16.4508,144.61,144.58,6.9163]
[1728361069821,16.4508,144.61,144.59,1.38299125]
[1728361070010,23.4422,144.65,144.6,6.9155]
[1728361070011,6.9141,144.64,144.6,6.9155]
[1728361070216,21.8646,144.65,144.58,23.776884]
[1728361070424,6.9142,144.63,144.58,30.693284]
[1728361071134,6.9142,144.63,144.59,6.9158]
[1728361071348,6.9137,144.64,144.6,6.9156]
[1728361071808,21.8646,144.65,144.6,6.9155]
[1728361072013,28.7778,144.65,144.6,6.9155]
[1728361072505,28.7778,144.65,144.61,6.9149]
[1728361073110,6.9137,144.64,144.59,17.2896]
[1728361073319,21.8646,144.65,144.59,17.2896]
[1728361073515,6.914,144.64,144.59,24.2053]
[1728361074034,28.7779,144.65,144.6,6.9155]
[1728361074818,28.7779,144.65,144.61,6.915]
[1728361075331,28.7779,144.65,144.6,30.692384]
[1728361075506,21.8646,144.65,144.6,30.692384]
[1728361075713,6.9137,144.64,144.6,30.692384]
[1728361076615,6.913,144.66,144.62,6.9143]
[1728361081512,6.9143,144.63,144.58,17.2907]
[1728361082016,15.0623,144.65,144.58,17.2907]
[1728361082215,6.9152,144.61,144.57,6.9166]
[1728361082415,15.0623,144.65,144.56,17.2932]
[1728361082644,6.9142,144.63,144.59,6.916]
[1728361084436,15.0623,144.65,144.58,17.291]
[1728361084650,6.9147,144.62,144.58,24.2074]
[1728361087329,6.9143,144.63,144.58,24.2074]
[1728361091530,6.9143,144.63,144.59,6.916]
[1728361092744,15.0623,144.65,144.55,69.19641798]
[1728361092948,21.9756,144.65,144.61,6.915]
[1728361093253,20.0,144.68,144.65,6.913]
[1728361093425,6.9114,144.69,144.64,24.1972]
[1728361094047,6.9119,144.68,144.64,24.1972]
[1728361094643,6.9119,144.68,144.65,1.38250359]
[1728361095144,6.9119,144.68,144.64,24.1972]
[1728361096048,6.9119,144.68,144.64,17.2837]
[1728361096954,20.0,144.69,144.61,24.2019]
[1728361097132,6.9124,144.67,144.62,6.9142]
[1728361100354,6.9124,144.67,144.61,17.2869]
[1728361100649,6.9124,144.67,144.63,6.914]
[1728361101740,20.0,144.69,144.63,6.914]
[1728361102045,6.9118,144.68,144.63,17.2849]
[1728361102253,6.9123,144.67,144.63,24.1989]
[1728361102749,20.0,144.69,144.6,23.776884]
[1728361102956,6.9133,144.65,144.61,6.915]
[1728361103261,6.9137,144.64,144.6,17.2883]
[1728361104247,6.9137,144.64,144.6,23.7038]
[1728361105879,15.704,144.66,144.6,16.7883]
[1728361106063,6.9143,144.63,144.6,16.7883]
[1728361107839,6.9138,144.64,144.6,16.7883]
[1728361110042,15.704,144.66,144.6,16.7883]
[1728361110368,6.9133,144.65,144.61,6.915]
[1728361114038,6.9137,144.64,144.6,23.7038]
[1728361125463,6.9142,144.63,144.59,6.9159]
[1728361131356,26.5277,144.65,144.57,17.2918]
[1728361131663,6.917,144.58,144.53,6.9185]
[1728361131967,20.0,144.62,144.55,6.9176]
[1728361132160,6.9153,144.61,144.56,6.9174]
[1728361133061,6.9153,144.61,144.57,6.9169]
[1728361134271,20.0,144.63,144.56,17.2932]
[1728361134487,20.0,144.63,144.54,84.5918]
[1728361134488,15.7083,144.64,144.58,17.2904]
[1728361134786,6.9143,144.63,144.58,24.2068]
[1728361140996,6.9146,144.62,144.58,24.2068]
[1728361142497,15.7083,144.64,144.56,6.9173]
[1728361142674,6.9153,144.61,144.56,6.9173]
[1728361143782,15.7083,144.64,144.56,6.9173]
[1728361143783,6.9159,144.6,144.56,6.9173]
[1728361144087,20.0,144.62,144.55,17.2944]
[1728361144993,6.9166,144.58,144.55,17.2944]
[1728361145881,6.9161,144.59,144.55,24.2123]
[1728361146074,20.0,144.62,144.56,6.9174]
[1728361146075,6.9157,144.6,144.56,6.9174]
[1728361148777,20.0,144.63,144.57,18.6750879]
[1728361149075,6.9155,144.61,144.57,17.2919]
[1728361149602,6.9155,144.61,144.57,24.2088]
[1728361153079,0.25098,144.62,144.54,17.2954]
[1728361153995,6.9165,144.59,144.55,6.9179]
[1728361156097,0.25098,144.62,144.54,17.2954]
[1728361156098,6.6307,144.6,144.54,17.2954]
[1728361156768,6.917,144.57,144.54,17.2954]
[1728361156973,6.9161,144.59,144.55,6.9176]
[1728361158388,6.9161,144.59,144.54,24.2137]
[1728361159884,6.9161,144.59,144.54,17.2954]
[1728361160085,6.9161,144.59,144.55,6.9179]
[1728361162487,13.5464,144.6,144.55,6.9179]
[1728361162674,6.6307,144.6,144.55,6.9179]
[1728361162875,6.9162,144.59,144.55,6.9179]
[1728361164002,15.4532,144.61,144.57,6.9167]
[1728361164174,6.0332,144.64,144.58,25.15999827]
[1728361164499,16.2391,144.65,144.62,6.9146]
[1728361164702,16.2391,144.65,144.61,6.915]
[1728361164933,23.1523,144.65,144.61,6.915]
[1728361165197,23.1523,144.65,144.59,17.2897]
[1728361165377,23.1523,144.65,144.6,6.9156]
[1728361170210,6.9143,144.63,144.59,24.2057]
[1728361170374,6.9157,144.6,144.56,24.2104]
[1728361170579,6.9157,144.6,144.56,17.293]
[1728361170901,6.9152,144.61,144.57,6.917]
[1728361171293,6.9152,144.61,144.56,17.293]
[1728361171486,6.9152,144.61,144.56,24.2103]
[1728361172807,6.9152,144.61,144.57,6.9169]
[1728361174998,6.9159,144.6,144.56,17.293]
[1728361175313,6.9159,144.6,144.56,24.2103]
[1728361176687,6.9152,144.61,144.56,24.2103]
[1728361182617,6.9152,144.61,144.57,6.917]
[1728361184316,20.0,144.62,144.56,17.293]
[1728361184492,26.9148,144.62,144.58,6.9165]
[1728361185812,6.9148,144.62,144.56,17.293]
[1728361186005,6.9148,144.62,144.57,6.9168]
[1728361193818,6.5153,144.63,144.59,6.9159]
[1728361194120,16.2391,144.65,144.59,6.9159]
[1728361194121,20.0,144.64,144.59,6.9159]
[1728361195205,6.9142,144.63,144.59,6.9159]
[1728361196018,6.9146,144.62,144.58,24.2073]
[1728361197923,6.9143,144.63,144.59,30.692884]
[1728361199025,6.9138,144.64,144.59,30.692884]
[1728361199408,6.9138,144.64,144.59,23.776884]
[1728361199608,6.9138,144.64,144.6,6.9155]
[1728361202633,16.2391,144.65,144.61,6.915]
[1728361202809,16.2391,144.65,144.61,8.29783476]
[1728361203422,23.1524,144.65,144.61,8.29783476]
[1728361204129,23.1524,144.65,144.61,6.915]
[1728361212572,13.3031,144.67,144.61,23.776884]
[1728361212702,13.3031,144.67,144.63,6.9138]
[1728361212703,6.9124,144.67,144.63,6.9138]
[1728361213509,6.9124,144.67,144.64,1.382653]
[1728361213711,21.9283,144.68,144.64,1.382653]
[1728361214532,23.6226,144.7,144.64,18.666553]
[1728361214533,13.2555,144.7,144.64,18.666553]
[1728361214756,13.2555,144.7,144.65,8.29555234]
[1728361214940,6.3446,144.7,144.65,8.29555234]
[1728361215108,6.9115,144.69,144.65,8.29555234]
[1728361215309,16.2252,144.71,144.66,1.38245236]
[1728361215514,6.911,144.7,144.65,6.9131]
[1728361215732,6.9118,144.68,144.64,24.1975]
[1728361216507,6.9114,144.69,144.65,6.913]
[1728361217720,6.911,144.7,144.66,6.9127]
[1728361219337,16.5093,144.75,144.67,25.15911983]
[1728361219571,6.9095,144.73,144.69,6.9113]
[1728361219836,6.9095,144.73,144.69,8.29331281]
[1728361221613,6.9095,144.73,144.69,6.9113]
[1728361221819,6.9095,144.73,144.7,1.38197253]
[1728361222742,6.909,144.74,144.7,1.38197253]
[1728361223326,6.909,144.74,144.7,6.9107]
[1728361223520,6.9085,144.75,144.71,6.9103]
[1728361223719,6.9081,144.76,144.71,6.9103]
[1728361223925,6.9081,144.76,144.72,6.9097]
[1728361224920,6.9076,144.77,144.73,1.3816186]
[1728361227718,6.9081,144.76,144.73,1.3816186]
[1728361228339,6.9081,144.76,144.72,6.9097]
[1728361228542,0.12549,144.78,144.69,6.4055]
[1728361228740,6.9094,144.73,144.69,13.3166]
[1728361229060,6.909,144.74,144.69,13.3166]
[1728361229345,6.909,144.74,144.7,6.9108]
[1728361230139,20.0,144.76,144.69,30.5945]
[1728361230325,6.9094,144.73,144.69,30.5945]
[1728361230931,6.909,144.74,144.7,6.9107]
[1728361231332,6.909,144.74,144.69,30.5945]
[1728361234026,6.909,144.74,144.7,6.9107]
[1728361235142,17.2692,144.77,144.68,15.7223]
[1728361235352,6.9093,144.74,144.69,6.911]
[1728361236528,20.0,144.76,144.69,6.911]
[1728361236726,6.9095,144.73,144.69,6.911]
[1728361238145,6.9099,144.72,144.68,39.913]
[1728361238444,6.9095,144.73,144.68,39.913]
[1728361239144,6.9099,144.72,144.68,39.913]
[1728361244848,6.9094,144.73,144.69,6.9112]
[1728361245360,6.9089,144.74,144.7,6.9107]
[1728361247152,16.1679,144.79,144.7,12.91621798]
[1728361247457,16.1679,144.79,144.73,17.2734]
[1728361247755,16.1679,144.79,144.74,1.38151229]
[1728361247958,6.9066,144.79,144.74,8.29001229]
[1728361249260,0.8117408,144.8,144.74,1.38151229]
[1728361249472,7.7178408,144.8,144.75,6.908]
[1728361249632,7.7178408,144.8,144.76,1.38136029]
[1728361250436,7.7178408,144.8,144.75,6.908]
[1728361256854,0.8117408,144.8,144.76,6.9076]
[1728361259359,0.8117408,144.8,144.77,1.38121761]
[1728361259675,0.8117408,144.8,144.77,8.28851761]
[1728361260583,0.8117408,144.8,144.77,6.9073]
[1728361261260,0.8117408,144.8,144.78,1.38116972]
[1728361261563,0.8117408,144.8,144.78,8.28806972]
[1728361261763,0.8117408,144.8,144.77,17.2684]
[1728361261972,0.8117408,144.8,144.74,30.3272]
[1728361261973,6.907,144.78,144.74,30.3272]
[1728361262286,6.9076,144.77,144.73,16.3357]
[1728361262451,6.9076,144.77,144.73,23.2449]
[1728361262649,6.9069,144.79,144.74,6.9085]
[1728361263150,6.907,144.78,144.74,6.9085]
[1728361264141,0.8117408,144.8,144.73,16.3357]
[1728361264341,6.9073,144.78,144.73,23.245]
[1728361264564,6.9075,144.77,144.73,23.245]
[1728361269252,18.0774408,144.8,144.73,16.3357]
[1728361269456,6.9071,144.78,144.74,6.9089]